[Event "*** Titled Tuesday Blitz"]
[Site "Chess.com"]
[Date "2020.05.12"]
[Round "6"]
[White "kai_nov"]
[Black "przemekpiotrowski"]
[Result "0-1"]
[WhiteElo "2254"]
[BlackElo "2428"]
[TimeControl "180+1"]
[EndTime "11:01:49 PDT"]
[Termination "przemekpiotrowski won by checkmate"]

1. d4 {[%clk 0:03:00.9]} 1... c5 {[%clk 0:02:59.9]} 2. d5 {[%clk 0:03:00.7]}
2... e5 {[%clk 0:03:00.3]} 3. c4 {[%clk 0:02:58.4]} 3... d6 {[%clk 0:03:00.7]}
4. Nc3 {[%clk 0:02:57.1]} 4... Be7 {[%clk 0:03:01.2]} 5. e4 {[%clk 0:02:56.5]}
5... Bg5 {[%clk 0:03:01]} 6. Bd3 {[%clk 0:02:55.2]} 6... Bxc1 {[%clk 0:03:00.9]}
7. Qxc1 {[%clk 0:02:54.8]} 7... Ne7 {[%clk 0:03:01.8]} 8. Nge2 {[%clk
0:02:53.8]} 8... O-O {[%clk 0:03:02.3]} 9. O-O {[%clk 0:02:54]} 9... Nd7 {[%clk
0:03:02.1]} 10. a3 {[%clk 0:02:52.7]} 10... Ng6 {[%clk 0:02:58.6]} 11. b4 {[%clk
0:02:46.9]} 11... b6 {[%clk 0:02:58.8]} 12. Qe3 {[%clk 0:02:46.8]} 12... Nf6
{[%clk 0:02:57.3]} 13. Ng3 {[%clk 0:02:28.7]} 13... Nf4 {[%clk 0:02:54.3]} 14.
Nce2 {[%clk 0:02:23.1]} 14... Ng4 {[%clk 0:02:54.3]} 15. Qf3 {[%clk 0:02:17.3]}
15... Qf6 {[%clk 0:02:12.1]} 16. h3 {[%clk 0:02:11.7]} 16... Nxh3+ {[%clk
0:02:11.7]} 17. Kh1 {[%clk 0:02:07.7]} 17... Qh6 {[%clk 0:02:06.1]} 18. Nf5
{[%clk 0:02:01.3]} 18... Nhxf2+ {[%clk 0:02:04]} 19. Kg1 {[%clk 0:01:58.9]}
19... Qh1# {[%clk 0:02:04.9]} 0-1

[Event "*** Titled Tuesday Blitz"]
[Site "Chess.com"]
[Date "2020.05.12"]
[Round "6"]
[White "Buffy7"]
[Black "ARMQUEEN"]
[Result "1-0"]
[WhiteElo "2673"]
[BlackElo "2342"]
[TimeControl "180+1"]
[EndTime "11:02:11 PDT"]
[Termination "Buffy7 won by resignation"]

1. d4 {[%clk 0:03:00.9]} 1... Nf6 {[%clk 0:02:57.3]} 2. c4 {[%clk 0:03:00.8]}
2... c5 {[%clk 0:02:55.6]} 3. Nf3 {[%clk 0:03:01.7]} 3... cxd4 {[%clk
0:02:55.2]} 4. Nxd4 {[%clk 0:03:02.6]} 4... g6 {[%clk 0:02:53.2]} 5. Nc3 {[%clk
0:03:02.1]} 5... Nc6 {[%clk 0:02:53.4]} 6. e4 {[%clk 0:03:02.4]} 6... Nxd4
{[%clk 0:02:53.5]} 7. Qxd4 {[%clk 0:03:01.5]} 7... d6 {[%clk 0:02:54.4]} 8. Be3
{[%clk 0:03:01.7]} 8... Bg7 {[%clk 0:02:54.9]} 9. Be2 {[%clk 0:02:56.4]} 9...
O-O {[%clk 0:02:54.7]} 10. Qd2 {[%clk 0:02:57]} 10... a5 {[%clk 0:02:54.1]} 11.
f3 {[%clk 0:02:55.6]} 11... a4 {[%clk 0:02:54.2]} 12. Rc1 {[%clk 0:02:51.7]}
12... Qa5 {[%clk 0:02:54.2]} 13. Kf2 {[%clk 0:02:52]} 13... Be6 {[%clk
0:02:52.8]} 14. Nd5 {[%clk 0:02:52.2]} 14... Qd8 {[%clk 0:02:09.3]} 15. Nb6
{[%clk 0:02:35.5]} 15... Ra6 {[%clk 0:01:57.6]} 16. c5 {[%clk 0:02:35.3]} 16...
dxc5 {[%clk 0:01:57]} 17. Qxd8 {[%clk 0:02:31]} 17... Rxd8 {[%clk 0:01:55.4]}
18. Bxa6 {[%clk 0:02:31.6]} 18... bxa6 {[%clk 0:01:55.4]} 19. Nxa4 {[%clk
0:02:29.4]} 19... c4 {[%clk 0:01:53.5]} 20. Nc5 {[%clk 0:02:26.7]} 20... Bc8
{[%clk 0:01:51]} 21. Rhd1 {[%clk 0:02:25.6]} 21... Re8 {[%clk 0:01:49.2]} 22.
Rxc4 {[%clk 0:02:24.5]} 22... Kf8 {[%clk 0:01:40.2]} 23. e5 {[%clk 0:02:24.6]}
23... Ng8 {[%clk 0:01:38.7]} 24. f4 {[%clk 0:02:25.2]} 24... f6 {[%clk
0:01:38.1]} 25. e6 {[%clk 0:02:24.7]} 25... f5 {[%clk 0:01:38.4]} 26. Nd7+
{[%clk 0:02:24.8]} 1-0

[Event "*** Titled Tuesday Blitz"]
[Site "Chess.com"]
[Date "2020.05.12"]
[Round "6"]
[White "AliKa2810"]
[Black "rynos0411"]
[Result "1-0"]
[WhiteElo "2532"]
[BlackElo "2326"]
[TimeControl "180+1"]
[EndTime "11:02:48 PDT"]
[Termination "AliKa2810 won by resignation"]

1. d4 {[%clk 0:03:00.9]} 1... Nf6 {[%clk 0:02:57.4]} 2. c4 {[%clk 0:03:00.5]}
2... e6 {[%clk 0:02:56.9]} 3. Nf3 {[%clk 0:02:59.8]} 3... d5 {[%clk 0:02:56.1]}
4. Nc3 {[%clk 0:02:59.4]} 4... Be7 {[%clk 0:02:56.4]} 5. Bf4 {[%clk 0:02:59]}
5... O-O {[%clk 0:02:55.5]} 6. e3 {[%clk 0:02:59]} 6... Nbd7 {[%clk 0:02:55.3]}
7. c5 {[%clk 0:02:58.4]} 7... c6 {[%clk 0:02:54.6]} 8. Bd3 {[%clk 0:02:56.3]}
8... b6 {[%clk 0:02:53.4]} 9. b4 {[%clk 0:02:56]} 9... a5 {[%clk 0:02:53.7]} 10.
a3 {[%clk 0:02:55.8]} 10... Bb7 {[%clk 0:02:47.6]} 11. O-O {[%clk 0:02:55]}
11... Qc8 {[%clk 0:02:46.1]} 12. h3 {[%clk 0:02:54.3]} 12... Ba6 {[%clk
0:02:44.6]} 13. g4 {[%clk 0:02:37.2]} 13... Bxd3 {[%clk 0:02:37.8]} 14. Qxd3
{[%clk 0:02:36.1]} 14... Qa6 {[%clk 0:02:38.7]} 15. Qxa6 {[%clk 0:02:20.4]}
15... Rxa6 {[%clk 0:02:39.6]} 16. b5 {[%clk 0:02:20.7]} 16... cxb5 {[%clk
0:02:34.7]} 17. c6 {[%clk 0:02:21]} 17... Nb8 {[%clk 0:02:32.5]} 18. c7 {[%clk
0:02:06.3]} 18... Nbd7 {[%clk 0:02:31.5]} 19. Nxb5 {[%clk 0:02:05.8]} 19... Rc8
{[%clk 0:02:30]} 20. Rfc1 {[%clk 0:02:02.2]} 20... Ne4 {[%clk 0:02:28.6]} 21.
Rc6 {[%clk 0:01:54.1]} 21... h6 {[%clk 0:02:13.4]} 22. Kg2 {[%clk 0:01:52.5]}
22... Kh7 {[%clk 0:01:58.8]} 23. Rac1 {[%clk 0:01:45.8]} 23... Bxa3 {[%clk
0:01:35.8]} 24. Nxa3 {[%clk 0:01:42.4]} 1-0

[Event "*** Titled Tuesday Blitz"]
[Site "Chess.com"]
[Date "2020.05.12"]
[Round "6"]
[White "Oglob71"]
[Black "Ladislav1969"]
[Result "0-1"]
[WhiteElo "2495"]
[BlackElo "2358"]
[TimeControl "180+1"]
[EndTime "11:03:01 PDT"]
[Termination "Ladislav1969 won by resignation"]

1. Nf3 {[%clk 0:02:44.5]} 1... Nf6 {[%clk 0:02:59.3]} 2. c4 {[%clk 0:02:44.6]}
2... c5 {[%clk 0:02:58.6]} 3. Nc3 {[%clk 0:02:44.8]} 3... g6 {[%clk 0:02:58.8]}
4. g3 {[%clk 0:02:45]} 4... Bg7 {[%clk 0:02:59]} 5. Bg2 {[%clk 0:02:45.7]} 5...
Nc6 {[%clk 0:02:59]} 6. O-O {[%clk 0:02:46]} 6... O-O {[%clk 0:02:59.1]} 7. d4
{[%clk 0:02:46.5]} 7... cxd4 {[%clk 0:02:58.7]} 8. Nxd4 {[%clk 0:02:47]} 8...
Nxd4 {[%clk 0:02:57.2]} 9. Qxd4 {[%clk 0:02:46.1]} 9... d6 {[%clk 0:02:54.4]}
10. Qh4 {[%clk 0:02:46.5]} 10... Qc7 {[%clk 0:02:45.6]} 11. Bg5 {[%clk 0:02:40]}
11... Be6 {[%clk 0:02:45.6]} 12. Nd5 {[%clk 0:02:35.2]} 12... Bxd5 {[%clk
0:02:38.5]} 13. cxd5 {[%clk 0:02:30.9]} 13... Rac8 {[%clk 0:02:34.3]} 14. Rac1
{[%clk 0:02:30.3]} 14... Qa5 {[%clk 0:02:29.7]} 15. a3 {[%clk 0:02:30.2]} 15...
Nxd5 {[%clk 0:02:24.3]} 16. Bxd5 {[%clk 0:02:27.1]} 16... Qxd5 {[%clk
0:02:21.8]} 17. Bxe7 {[%clk 0:02:27.6]} 17... Rxc1 {[%clk 0:02:18.6]} 18. Rxc1
{[%clk 0:02:26.6]} 18... Re8 {[%clk 0:02:18.6]} 19. Bf6 {[%clk 0:02:22.4]} 19...
Qd2 {[%clk 0:02:00]} 20. Rc7 {[%clk 0:01:52.7]} 20... Qxe2 {[%clk 0:01:49.9]}
21. Bxg7 {[%clk 0:01:50.1]} 21... Kxg7 {[%clk 0:01:39.2]} 22. Qd4+ {[%clk
0:01:49.2]} 22... Kg8 {[%clk 0:01:28]} 23. Rxb7 {[%clk 0:01:49.2]} 23... Qf3
{[%clk 0:01:27.3]} 24. Qd2 {[%clk 0:01:40.8]} 24... Qxb7 {[%clk 0:01:26.1]} 0-1

[Event "*** Titled Tuesday Blitz"]
[Site "Chess.com"]
[Date "2020.05.12"]
[Round "6"]
[White "GeorgMeier"]
[Black "kasparicy"]
[Result "1-0"]
[WhiteElo "3008"]
[BlackElo "2325"]
[TimeControl "180+1"]
[EndTime "11:03:11 PDT"]
[Termination "GeorgMeier won by resignation"]

1. Nf3 {[%clk 0:03:00.9]} 1... Nf6 {[%clk 0:02:59.7]} 2. d4 {[%clk 0:03:00.3]}
2... g6 {[%clk 0:02:59.7]} 3. Bg5 {[%clk 0:02:59.7]} 3... Bg7 {[%clk 0:02:59.9]}
4. Nbd2 {[%clk 0:03:00]} 4... d5 {[%clk 0:02:59.2]} 5. e3 {[%clk 0:02:59.4]}
5... O-O {[%clk 0:02:58.4]} 6. h3 {[%clk 0:02:58]} 6... c5 {[%clk 0:02:58.4]} 7.
c3 {[%clk 0:02:56.9]} 7... Nc6 {[%clk 0:02:58.6]} 8. Bb5 {[%clk 0:02:55.3]} 8...
Re8 {[%clk 0:02:54.6]} 9. O-O {[%clk 0:02:53.7]} 9... a6 {[%clk 0:02:45.7]} 10.
Bxc6 {[%clk 0:02:53.2]} 10... bxc6 {[%clk 0:02:46.6]} 11. Nb3 {[%clk 0:02:51.8]}
11... c4 {[%clk 0:02:40.1]} 12. Nc5 {[%clk 0:02:51.5]} 12... Nd7 {[%clk
0:02:38.2]} 13. Nxd7 {[%clk 0:02:48.2]} 13... Bxd7 {[%clk 0:02:37.2]} 14. b3
{[%clk 0:02:49.1]} 14... cxb3 {[%clk 0:02:34]} 15. axb3 {[%clk 0:02:47.2]} 15...
c5 {[%clk 0:02:34.4]} 16. dxc5 {[%clk 0:02:37.3]} 16... Bb5 {[%clk 0:02:31.5]}
17. Re1 {[%clk 0:02:28.1]} 17... Bxc3 {[%clk 0:02:29.4]} 18. Nd4 {[%clk
0:02:27.7]} 18... Bxe1 {[%clk 0:02:27.7]} 19. Qxe1 {[%clk 0:02:23.9]} 19... Qc7
{[%clk 0:02:27.2]} 20. Rc1 {[%clk 0:02:19.9]} 20... e5 {[%clk 0:02:26.8]} 21.
Nf3 {[%clk 0:02:12.8]} 21... Kg7 {[%clk 0:02:21.8]} 22. Nd2 {[%clk 0:02:12.1]}
22... f6 {[%clk 0:02:20.5]} 23. Bh4 {[%clk 0:02:12.1]} 23... a5 {[%clk
0:02:14.5]} 24. Bg3 {[%clk 0:02:12]} 24... Qc6 {[%clk 0:02:13.1]} 25. f4 {[%clk
0:02:11.9]} 25... Rad8 {[%clk 0:02:12.1]} 26. fxe5 {[%clk 0:02:11.7]} 26... fxe5
{[%clk 0:02:11.9]} 27. Nf3 {[%clk 0:02:12.1]} 27... Qf6 {[%clk 0:02:02.2]} 28.
Qxa5 {[%clk 0:02:10]} 28... Be2 {[%clk 0:02:00]} 29. Qc7+ {[%clk 0:02:07.4]}
29... Qf7 {[%clk 0:01:46.4]} 30. Bxe5+ {[%clk 0:02:02.8]} 30... Kg8 {[%clk
0:01:46.2]} 31. Nd4 {[%clk 0:02:00.4]} 31... Qxc7 {[%clk 0:01:41.1]} 32. Bxc7
{[%clk 0:01:59.6]} 32... Rc8 {[%clk 0:01:41.6]} 33. Bf4 {[%clk 0:01:58.8]} 33...
Kg7 {[%clk 0:01:33.8]} 34. c6 {[%clk 0:01:56.7]} 34... h6 {[%clk 0:01:33]} 35.
h4 {[%clk 0:01:57.1]} 35... Kf6 {[%clk 0:01:30.2]} 36. Nxe2 {[%clk 0:01:55.3]}
1-0

[Event "*** Titled Tuesday Blitz"]
[Site "Chess.com"]
[Date "2020.05.12"]
[Round "6"]
[White "DanilNajdin"]
[Black "Vamostodorecto"]
[Result "0-1"]
[WhiteElo "2282"]
[BlackElo "2448"]
[TimeControl "180+1"]
[EndTime "11:03:12 PDT"]
[Termination "Vamostodorecto won by resignation"]

1. d4 {[%clk 0:03:00.9]} 1... Nf6 {[%clk 0:02:58.9]} 2. g3 {[%clk 0:03:00.3]}
2... g6 {[%clk 0:02:59.5]} 3. Bg2 {[%clk 0:03:00.5]} 3... Bg7 {[%clk 0:03:00.4]}
4. e4 {[%clk 0:03:01.1]} 4... O-O {[%clk 0:02:59.3]} 5. Nc3 {[%clk 0:02:59.3]}
5... c6 {[%clk 0:02:56.5]} 6. Nf3 {[%clk 0:02:57.6]} 6... d5 {[%clk 0:02:56.8]}
7. e5 {[%clk 0:02:57.4]} 7... Ne8 {[%clk 0:02:44.4]} 8. O-O {[%clk 0:02:56.5]}
8... f6 {[%clk 0:02:37]} 9. exf6 {[%clk 0:02:54.3]} 9... exf6 {[%clk 0:02:37.9]}
10. Bf4 {[%clk 0:02:50.6]} 10... Bg4 {[%clk 0:02:37.3]} 11. h3 {[%clk
0:02:47.5]} 11... Bf5 {[%clk 0:02:35.1]} 12. g4 {[%clk 0:02:46.4]} 12... Be6
{[%clk 0:02:34]} 13. Re1 {[%clk 0:02:45.3]} 13... Bf7 {[%clk 0:02:31.7]} 14. a4
{[%clk 0:02:38.1]} 14... Nd6 {[%clk 0:02:32]} 15. a5 {[%clk 0:02:30.8]} 15...
Na6 {[%clk 0:02:31]} 16. Bf1 {[%clk 0:02:18.2]} 16... Qd7 {[%clk 0:02:29.2]} 17.
Bxa6 {[%clk 0:02:10.8]} 17... bxa6 {[%clk 0:02:30.1]} 18. Na4 {[%clk 0:02:11.3]}
18... Ne4 {[%clk 0:02:23.9]} 19. Nc5 {[%clk 0:02:10]} 19... Qc8 {[%clk
0:02:24.3]} 20. Nxe4 {[%clk 0:02:09.2]} 20... dxe4 {[%clk 0:02:22.3]} 21. Rxe4
{[%clk 0:02:10]} 21... f5 {[%clk 0:02:16.2]} 22. gxf5 {[%clk 0:02:00.1]} 22...
Qxf5 {[%clk 0:02:17.1]} 23. Bd6 {[%clk 0:01:50.3]} 23... Qxe4 {[%clk 0:02:12.1]}
24. Bxf8 {[%clk 0:01:47.9]} 24... Rxf8 {[%clk 0:02:13]} 25. Ra3 {[%clk 0:01:32]}
25... Bd5 {[%clk 0:02:10.8]} 26. Re3 {[%clk 0:01:24.5]} 26... Qf4 {[%clk
0:02:06.2]} 0-1

[Event "*** Titled Tuesday Blitz"]
[Site "Chess.com"]
[Date "2020.05.12"]
[Round "6"]
[White "GMaka"]
[Black "AndrewMaco"]
[Result "0-1"]
[WhiteElo "2366"]
[BlackElo "2559"]
[TimeControl "180+1"]
[EndTime "11:03:19 PDT"]
[Termination "AndrewMaco won by resignation"]

1. d4 {[%clk 0:03:00.9]} 1... Nf6 {[%clk 0:03:00]} 2. Bf4 {[%clk 0:03:00.7]}
2... e6 {[%clk 0:02:59.7]} 3. c3 {[%clk 0:03:00.6]} 3... b6 {[%clk 0:02:57.8]}
4. e3 {[%clk 0:03:00.8]} 4... Bb7 {[%clk 0:02:58.2]} 5. a4 {[%clk 0:03:00.2]}
5... a6 {[%clk 0:02:57.1]} 6. Nf3 {[%clk 0:02:59.4]} 6... g6 {[%clk 0:02:57.2]}
7. h3 {[%clk 0:02:51.1]} 7... Bg7 {[%clk 0:02:57.4]} 8. b4 {[%clk 0:02:51.5]}
8... O-O {[%clk 0:02:56.5]} 9. a5 {[%clk 0:02:49.4]} 9... b5 {[%clk 0:02:55.9]}
10. Nbd2 {[%clk 0:02:48.8]} 10... d6 {[%clk 0:02:55.7]} 11. Nb3 {[%clk
0:02:46.8]} 11... Nbd7 {[%clk 0:02:51.1]} 12. Bh2 {[%clk 0:02:45.7]} 12... Qe7
{[%clk 0:02:47.4]} 13. Be2 {[%clk 0:02:42.7]} 13... Nd5 {[%clk 0:02:41.8]} 14.
Qd2 {[%clk 0:02:37.9]} 14... f5 {[%clk 0:02:39.2]} 15. O-O {[%clk 0:02:29.4]}
15... N7f6 {[%clk 0:02:39.4]} 16. Qb2 {[%clk 0:02:06.4]} 16... Ne4 {[%clk
0:02:38.5]} 17. Rac1 {[%clk 0:01:47.2]} 17... f4 {[%clk 0:02:30.5]} 18. exf4
{[%clk 0:01:45.7]} 18... Nxf4 {[%clk 0:02:30.6]} 19. Bxf4 {[%clk 0:01:25.2]}
19... Rxf4 {[%clk 0:02:31.5]} 20. Nbd2 {[%clk 0:01:17.6]} 20... Raf8 {[%clk
0:02:19.9]} 21. Nxe4 {[%clk 0:01:16.9]} 21... Bxe4 {[%clk 0:02:20.8]} 22. Nd2
{[%clk 0:00:58.3]} 22... Bxg2 {[%clk 0:02:05.6]} 23. Kxg2 {[%clk 0:00:59.2]}
23... Qg5+ {[%clk 0:02:05.8]} 24. Bg4 {[%clk 0:00:59.6]} 24... Rxg4+ {[%clk
0:01:52.3]} 25. hxg4 {[%clk 0:01:00.5]} 25... Qxg4+ {[%clk 0:01:53.1]} 26. Kh2
{[%clk 0:01:01]} 26... Rf5 {[%clk 0:01:53.6]} 0-1

[Event "*** Titled Tuesday Blitz"]
[Site "Chess.com"]
[Date "2020.05.12"]
[Round "6"]
[White "m_ezat"]
[Black "Gordima"]
[Result "0-1"]
[WhiteElo "2604"]
[BlackElo "2775"]
[TimeControl "180+1"]
[EndTime "11:03:24 PDT"]
[Termination "Gordima won by resignation"]

1. d4 {[%clk 0:03:00.9]} 1... d5 {[%clk 0:02:59]} 2. c4 {[%clk 0:03:01]} 2... e6
{[%clk 0:02:59.6]} 3. Nc3 {[%clk 0:02:59.2]} 3... Bb4 {[%clk 0:03:00.2]} 4. e3
{[%clk 0:02:58.6]} 4... Nf6 {[%clk 0:03:00.5]} 5. a3 {[%clk 0:02:58.7]} 5...
Bxc3+ {[%clk 0:03:00.5]} 6. bxc3 {[%clk 0:02:59.3]} 6... c6 {[%clk 0:03:01.1]}
7. cxd5 {[%clk 0:02:58.5]} 7... cxd5 {[%clk 0:03:01.3]} 8. f3 {[%clk 0:02:58.7]}
8... b6 {[%clk 0:02:59.9]} 9. Bd3 {[%clk 0:02:58.7]} 9... O-O {[%clk 0:02:59.9]}
10. Ne2 {[%clk 0:02:59.2]} 10... Ba6 {[%clk 0:03:00.1]} 11. O-O {[%clk
0:02:59.2]} 11... Bxd3 {[%clk 0:02:59]} 12. Qxd3 {[%clk 0:02:59.5]} 12... Nc6
{[%clk 0:02:59.6]} 13. e4 {[%clk 0:02:59.9]} 13... Ne8 {[%clk 0:02:59.8]} 14. e5
{[%clk 0:02:59.1]} 14... Na5 {[%clk 0:02:55.7]} 15. f4 {[%clk 0:02:59]} 15... f5
{[%clk 0:02:55.7]} 16. exf6 {[%clk 0:02:59.2]} 16... Qxf6 {[%clk 0:02:47]} 17.
f5 {[%clk 0:02:48.3]} 17... Nd6 {[%clk 0:02:37.2]} 18. Ng3 {[%clk 0:02:38.4]}
18... Nxf5 {[%clk 0:02:30.8]} 19. Nxf5 {[%clk 0:02:38.2]} 19... exf5 {[%clk
0:02:29.8]} 20. Bf4 {[%clk 0:02:36.8]} 20... Nc4 {[%clk 0:02:28.4]} 21. Rae1
{[%clk 0:02:30.1]} 21... Rae8 {[%clk 0:02:27.4]} 22. Qg3 {[%clk 0:02:07.8]}
22... Re4 {[%clk 0:02:24]} 23. Bg5 {[%clk 0:01:57.8]} 23... Qd6 {[%clk
0:01:59.4]} 24. Bf4 {[%clk 0:01:32.1]} 24... Qe6 {[%clk 0:01:55.1]} 25. Rxe4
{[%clk 0:01:30.8]} 25... fxe4 {[%clk 0:01:56]} 26. a4 {[%clk 0:01:27.9]} 26...
h6 {[%clk 0:01:38.1]} 27. h4 {[%clk 0:01:27.7]} 27... Kh7 {[%clk 0:01:35.7]} 28.
Re1 {[%clk 0:01:24]} 28... Qg6 {[%clk 0:01:30.2]} 29. Qh3 {[%clk 0:01:22.1]}
29... Rxf4 {[%clk 0:01:28.8]} 0-1

[Event "*** Titled Tuesday Blitz"]
[Site "Chess.com"]
[Date "2020.05.12"]
[Round "6"]
[White "ChelsieMonica"]
[Black "WonderChampion"]
[Result "1-0"]
[WhiteElo "2348"]
[BlackElo "1890"]
[TimeControl "180+1"]
[EndTime "11:03:31 PDT"]
[Termination "ChelsieMonica won by checkmate"]

1. c4 {[%clk 0:03:00.9]} 1... e6 {[%clk 0:02:59.2]} 2. Nf3 {[%clk 0:03:01.8]}
2... d5 {[%clk 0:02:58.9]} 3. e3 {[%clk 0:03:02.3]} 3... Nf6 {[%clk 0:02:55.9]}
4. Nc3 {[%clk 0:03:02.4]} 4... c5 {[%clk 0:02:55.4]} 5. d4 {[%clk 0:02:59.2]}
5... cxd4 {[%clk 0:02:43.9]} 6. exd4 {[%clk 0:02:58.3]} 6... dxc4 {[%clk
0:02:40]} 7. Bxc4 {[%clk 0:02:57.7]} 7... Nc6 {[%clk 0:02:40.2]} 8. O-O {[%clk
0:02:57.1]} 8... Nb4 {[%clk 0:02:37]} 9. Bg5 {[%clk 0:02:55.4]} 9... Be7 {[%clk
0:02:32.2]} 10. Bb5+ {[%clk 0:02:48.8]} 10... Bd7 {[%clk 0:02:29.4]} 11. Bxd7+
{[%clk 0:02:43]} 11... Qxd7 {[%clk 0:02:29.3]} 12. Ne5 {[%clk 0:02:41.8]} 12...
Qd8 {[%clk 0:02:15.9]} 13. Bxf6 {[%clk 0:02:41.7]} 13... Bxf6 {[%clk 0:02:09.2]}
14. Qa4+ {[%clk 0:02:40.7]} 14... Nc6 {[%clk 0:02:07.2]} 15. Nxc6 {[%clk
0:02:40.7]} 15... bxc6 {[%clk 0:02:07.1]} 16. Qxc6+ {[%clk 0:02:41.6]} 16... Kf8
{[%clk 0:02:04.3]} 17. Rad1 {[%clk 0:02:37]} 17... g6 {[%clk 0:02:02.9]} 18. d5
{[%clk 0:02:35.3]} 18... e5 {[%clk 0:01:42.2]} 19. Ne4 {[%clk 0:02:26.9]} 19...
Kg7 {[%clk 0:01:40]} 20. f4 {[%clk 0:02:20.6]} 20... Qb6+ {[%clk 0:01:28.5]} 21.
Qxb6 {[%clk 0:02:20]} 21... axb6 {[%clk 0:01:28.8]} 22. Nxf6 {[%clk 0:02:15.5]}
22... Kxf6 {[%clk 0:01:29.2]} 23. fxe5+ {[%clk 0:02:15.9]} 23... Kxe5 {[%clk
0:01:29.7]} 24. Rxf7 {[%clk 0:02:15.3]} 24... Rxa2 {[%clk 0:01:27.2]} 25. d6
{[%clk 0:02:15.5]} 25... Rd8 {[%clk 0:01:25]} 26. Re7+ {[%clk 0:02:12.3]} 26...
Kf6 {[%clk 0:01:21]} 27. h4 {[%clk 0:02:06.3]} 27... Ra5 {[%clk 0:01:09]} 28. g4
{[%clk 0:02:02]} 28... g5 {[%clk 0:00:55]} 29. Rf1+ {[%clk 0:01:59.2]} 29... Kg6
{[%clk 0:00:55.4]} 30. h5+ {[%clk 0:01:59.2]} 30... Kh6 {[%clk 0:00:53.3]} 31.
Rf6# {[%clk 0:01:58.3]} 1-0

[Event "*** Titled Tuesday Blitz"]
[Site "Chess.com"]
[Date "2020.05.12"]
[Round "6"]
[White "oneshot007"]
[Black "arminmusovic"]
[Result "1-0"]
[WhiteElo "2401"]
[BlackElo "2547"]
[TimeControl "180+1"]
[EndTime "11:03:42 PDT"]
[Termination "oneshot007 won on time"]

1. e4 {[%clk 0:03:00.9]} 1... c6 {[%clk 0:01:14.6]} 2. d4 {[%clk 0:02:57.9]}
2... d5 {[%clk 0:01:15.5]} 3. exd5 {[%clk 0:02:52.6]} 3... cxd5 {[%clk
0:01:16.4]} 4. c4 {[%clk 0:02:51]} 4... Nc6 {[%clk 0:01:17.3]} 5. cxd5 {[%clk
0:02:48.6]} 5... Qxd5 {[%clk 0:01:17]} 6. Nf3 {[%clk 0:02:47.4]} 6... e5 {[%clk
0:01:17.4]} 7. Nc3 {[%clk 0:02:42.2]} 7... Bb4 {[%clk 0:01:17.7]} 8. Bd2 {[%clk
0:02:39.9]} 8... Bxc3 {[%clk 0:01:17.8]} 9. Bxc3 {[%clk 0:02:37.9]} 9... e4
{[%clk 0:01:18.3]} 10. Ne5 {[%clk 0:02:34.9]} 10... Nxe5 {[%clk 0:01:18.8]} 11.
dxe5 {[%clk 0:02:32.5]} 11... Ne7 {[%clk 0:01:19.5]} 12. Qe2 {[%clk 0:01:52]}
1-0

[Event "*** Titled Tuesday Blitz"]
[Site "Chess.com"]
[Date "2020.05.12"]
[Round "6"]
[White "kingnb"]
[Black "DLR7"]
[Result "0-1"]
[WhiteElo "2483"]
[BlackElo "2711"]
[TimeControl "180+1"]
[EndTime "11:03:43 PDT"]
[Termination "DLR7 won by resignation"]

1. e4 {[%clk 0:03:00.9]} 1... c5 {[%clk 0:02:58.8]} 2. Nf3 {[%clk 0:03:01]} 2...
Nc6 {[%clk 0:02:59]} 3. c3 {[%clk 0:03:00.4]} 3... d5 {[%clk 0:02:58.2]} 4. exd5
{[%clk 0:03:00.9]} 4... Qxd5 {[%clk 0:02:56.1]} 5. d4 {[%clk 0:03:01.8]} 5...
Nf6 {[%clk 0:02:48.7]} 6. Na3 {[%clk 0:03:00.7]} 6... Bg4 {[%clk 0:02:46]} 7.
Be2 {[%clk 0:02:58.5]} 7... cxd4 {[%clk 0:02:43.3]} 8. Nb5 {[%clk 0:02:36.6]}
8... O-O-O {[%clk 0:02:37.4]} 9. Nbxd4 {[%clk 0:02:34.7]} 9... e5 {[%clk
0:02:33.1]} 10. Nxc6 {[%clk 0:02:28.1]} 10... Qxc6 {[%clk 0:02:34]} 11. Qc2
{[%clk 0:02:24.2]} 11... Bc5 {[%clk 0:02:30.3]} 12. O-O {[%clk 0:02:01.5]} 12...
Rhe8 {[%clk 0:02:19.4]} 13. a4 {[%clk 0:01:39.9]} 13... e4 {[%clk 0:02:14.3]}
14. Ne1 {[%clk 0:01:25.3]} 14... Qd5 {[%clk 0:02:07.6]} 15. b4 {[%clk
0:01:20.4]} 15... Bd6 {[%clk 0:02:06.4]} 16. Bxg4+ {[%clk 0:01:10]} 16... Nxg4
{[%clk 0:02:04.9]} 17. h3 {[%clk 0:01:09.4]} 17... Nh2 {[%clk 0:01:56.5]} 18.
Be3 {[%clk 0:01:03.3]} 18... Qc4 {[%clk 0:01:46.2]} 0-1

[Event "*** Titled Tuesday Blitz"]
[Site "Chess.com"]
[Date "2020.05.12"]
[Round "6"]
[White "GM-2023"]
[Black "krasavetc"]
[Result "1-0"]
[WhiteElo "2092"]
[BlackElo "2283"]
[TimeControl "180+1"]
[EndTime "11:03:49 PDT"]
[Termination "GM-2023 won by resignation"]

1. e4 {[%clk 0:03:00.9]} 1... e6 {[%clk 0:02:57.9]} 2. d4 {[%clk 0:03:00.7]}
2... b6 {[%clk 0:02:58.3]} 3. Nc3 {[%clk 0:03:00]} 3... Bb7 {[%clk 0:02:58.9]}
4. Nf3 {[%clk 0:02:53.4]} 4... Nf6 {[%clk 0:02:58.9]} 5. Bd3 {[%clk 0:02:51.7]}
5... d5 {[%clk 0:02:57.4]} 6. Qe2 {[%clk 0:02:51.4]} 6... Nxe4 {[%clk
0:02:57.2]} 7. Nxe4 {[%clk 0:02:50.8]} 7... dxe4 {[%clk 0:02:58.1]} 8. Bxe4
{[%clk 0:02:51.4]} 8... Bxe4 {[%clk 0:02:57.4]} 9. Qxe4 {[%clk 0:02:52.3]} 9...
Qd5 {[%clk 0:02:57.3]} 10. Qe2 {[%clk 0:02:44.4]} 10... Nc6 {[%clk 0:02:56.2]}
11. O-O {[%clk 0:02:43.2]} 11... O-O-O {[%clk 0:02:55.3]} 12. Qa6+ {[%clk
0:02:33.1]} 12... Kb8 {[%clk 0:02:52.5]} 13. c4 {[%clk 0:02:34]} 13... Qh5
{[%clk 0:02:50]} 14. Be3 {[%clk 0:02:25.8]} 14... Bd6 {[%clk 0:02:48.3]} 15. a4
{[%clk 0:02:21.9]} 15... g5 {[%clk 0:02:40]} 16. c5 {[%clk 0:02:20.8]} 16... g4
{[%clk 0:02:38.2]} 17. cxd6 {[%clk 0:02:19.1]} 17... gxf3 {[%clk 0:02:38.5]} 18.
dxc7+ {[%clk 0:02:18.8]} 18... Kxc7 {[%clk 0:02:39.4]} 19. Bf4+ {[%clk
0:02:10.7]} 19... Rd6 {[%clk 0:02:37.4]} 20. Rfc1 {[%clk 0:02:02.1]} 20... Rb8
{[%clk 0:01:52.2]} 21. Rxc6+ {[%clk 0:01:53.8]} 21... Kxc6 {[%clk 0:01:51.4]}
22. Rc1+ {[%clk 0:01:51.6]} 22... Kd7 {[%clk 0:01:36.2]} 23. Qxa7+ {[%clk
0:01:50]} 23... Ke8 {[%clk 0:01:33.8]} 24. Qxb8+ {[%clk 0:01:46.8]} 24... Rd8
{[%clk 0:01:34]} 25. Rc8 {[%clk 0:01:38.3]} 25... Rxc8 {[%clk 0:01:27.3]} 26.
Qxc8+ {[%clk 0:01:39.2]} 26... Ke7 {[%clk 0:01:27.9]} 27. Qc7+ {[%clk 0:01:35]}
27... Ke8 {[%clk 0:01:27.2]} 28. Bd6 {[%clk 0:01:32]} 28... Qg5 {[%clk
0:01:24.3]} 29. Qc8+ {[%clk 0:01:28.5]} 29... Qd8 {[%clk 0:01:23.8]} 30. Qxd8+
{[%clk 0:01:28.8]} 30... Kxd8 {[%clk 0:01:24.7]} 31. gxf3 {[%clk 0:01:27.7]}
31... Kd7 {[%clk 0:01:25.6]} 32. Bb4 {[%clk 0:01:26.6]} 32... Kc6 {[%clk
0:01:23.6]} 1-0